fUSD/lending_fUSD_20251221
["ID","MTS","AMOUNT","RATE_DAILY","PERIOD"]
[399371649,1766323839861,-500.0,0.00011084,2]
[399371650,1766323839871,-500.0,0.00011084,2]
[399371651,1766323839881,-500.0,0.00011084,2]
[399371652,1766323839891,-500.0,0.00011084,2]
[399371653,1766323839900,-500.0,0.00011084,2]
[399371654,1766323839909,-500.0,0.00011084,2]
[399371655,1766323839918,-500.0,0.00011084,2]
[399371656,1766323839927,-500.0,0.00011084,2]
[399371657,1766323839937,-500.0,0.00011084,2]
[399371658,1766323839946,-500.0,0.00011084,2]
[399371659,1766323839956,-500.0,0.00011084,2]
[399371660,1766323839965,-500.0,0.00011084,2]
[399371661,1766323839975,-500.0,0.00011084,2]
[399371662,1766323839984,-500.0,0.00011084,2]
[399371663,1766323839993,-500.0,0.00011084,2]
[399371664,1766323840003,-500.0,0.00011084,2]
[399371665,1766323840012,-500.0,0.00011084,2]
[399371666,1766323840021,-500.0,0.00011084,2]
[399371667,1766323840030,-500.0,0.00011084,2]
[399371668,1766323840039,-300.0,0.00011084,2]
[399371669,1766323840048,-500.0,0.00011084,2]
[399371670,1766323840058,-550.0,0.00011084,2]
[399371671,1766323840067,-500.0,0.00011084,2]
[399371672,1766323840077,-500.0,0.00011084,2]
[399371673,1766323840088,-500.0,0.00011084,2]
[399371674,1766323840107,-500.0,0.00011084,2]
[399371675,1766323840117,-500.0,0.00011084,2]
[399371676,1766323840126,-500.0,0.00011084,2]
[399371677,1766323840139,-500.0,0.00011085,2]
[399371678,1766323840149,-139475.34884787,0.00011086,2]
[399371679,1766323840159,-244.93995189,0.00011094,2]
[399371680,1766323840168,-363.59843099,0.00011094,2]
[399371681,1766323840177,-31752.91727697,0.00011099,2]
[399371682,1766323840187,-29317.55006083,0.00011099,2]
[399371683,1766323840197,-1986.278,0.00011123,2]
[399371684,1766323840206,-1985.60848995,0.00011123,2]
[399371685,1766323840215,-33494.9637,0.00011123,2]
[399371686,1766323840225,-4485.2563,0.00011178,2]
[399371687,1766323840234,-2133.96,0.00011194,2]
[399371688,1766323840244,-221.43334789,0.00011194,3]
[399371689,1766323840253,-382009.27693454,0.00011195,2]
[399371690,1766323840263,-151.0,0.00011216,2]
[399371692,1766323840272,-151.0,0.00011216,2]
[399371694,1766323840283,-151.0,0.00011216,2]
[399371698,1766323840292,-151.0,0.00011216,2]
[399371700,1766323840302,-151.0,0.00011216,2]
[399371702,1766323840312,-151.0,0.00011216,2]
[399371703,1766323840322,-151.0,0.00011216,2]
[399371704,1766323840331,-151.0,0.00011216,2]
[399371706,1766323840343,-151.0,0.00011216,2]
[399371707,1766323840353,-151.0,0.00011216,2]
[399371708,1766323840363,-151.0,0.00011216,2]
[399371709,1766323840373,-151.0,0.00011216,2]
[399371710,1766323840383,-151.0,0.00011216,2]
[399371711,1766323840393,-151.0,0.00011216,2]
[399371712,1766323840403,-151.0,0.00011216,2]
[399371713,1766323840413,-151.0,0.00011216,2]
[399371714,1766323840423,-151.0,0.00011216,2]
[399371715,1766323840432,-151.0,0.00011216,2]
[399371716,1766323840442,-151.0,0.00011216,2]
[399371717,1766323840451,-151.0,0.00011216,2]
[399371718,1766323840461,-1101.62355978,0.00011222,3]
[399371719,1766323840471,-1101.62355976,0.00011222,3]
[399371720,1766323840481,-1000.0,0.00011223,2]
[399371721,1766323840492,-9999.99,0.00011281,2]
[399371722,1766323840502,-11877.2,0.00011281,2]
[399371723,1766323840512,-1201.98,0.00011281,2]
[399371724,1766323840522,-1194.52,0.00011281,2]
[399371725,1766323840532,-500.0,0.00011359,2]
[399371726,1766323840542,-31752.91727692,0.00011443,2]
[399371727,1766323840551,-2133.96,0.00011468,2]
[399371728,1766323840561,-314.1002931,0.00011512,2]
[399371729,1766323840571,-500.0,0.00011633,2]
[399371730,1766323840581,-29317.55006083,0.00011651,2]
[399371731,1766323840593,-1281.03308487,0.00011678,2]
[399371732,1766323840602,-2133.96,0.00011742,2]
[399371733,1766323840612,-1226.3358889,0.00011744,2]
[399371734,1766323840621,-2213.15,0.00011778,2]
[399371735,1766323840631,-500.0,0.00011907,2]
[399371736,1766323840640,-195.0,0.00011945,2]
[399371737,1766323840651,-300.0,0.00011945,2]
[399371738,1766323840660,-195.0,0.00011945,2]
[399371739,1766323840670,-300.0,0.00011945,2]
[399371740,1766323840681,-250.0,0.00011945,2]
[399371741,1766323840690,-193.0,0.00011955,2]
[399371742,1766323840700,-195.0,0.00011955,2]
[399371743,1766323840709,-300.0,0.00011955,2]
[399371744,1766323840719,-285.33846478,0.0001199,2]
[399371745,1766323840728,-31752.91727692,0.00012002,2]
[399371746,1766323840737,-195.0,0.00012015,2]
[399371747,1766323840746,-300.0,0.00012015,2]
[399371748,1766323840756,-250.0,0.00012015,2]
[399371749,1766323840765,-2133.96,0.00012016,2]
[399371750,1766323840774,-255.0,0.00012027,2]
[399371751,1766323840783,-420.0,0.0001207,2]
[399371752,1766323840793,-1680.0,0.00012082,2]
[399371753,1766323840802,-500.0,0.00012181,2]
[399371754,1766323840811,-139716.7132768,0.00012284,2]
[399371755,1766323840821,-2133.96,0.0001229,2]
[399371756,1766323840830,-29317.55006083,0.00012307,2]
[399371757,1766323840841,-3640.9164128,0.00012322,2]
[399371758,1766323840851,-362.0,0.00012384,2]
[399371759,1766323840860,-151.0,0.00012401,2]
[399371760,1766323840870,-1101.62355976,0.00012403,3]
[399371761,1766323840879,-382464.788401,0.00012404,2]
[399371762,1766323840888,-500.0,0.00012455,2]
[399371763,1766323840898,-269.9,0.00012496,2]
[399371764,1766323840908,-296.83,0.00012533,2]
[399371765,1766323840917,-31752.91727692,0.0001256,2]
[399371766,1766323840926,-2133.96,0.00012564,2]
[399371767,1766323840935,-309423.36329007,0.00012571,2]
[399371768,1766323840946,-539.0,0.00012603,2]
[399371769,1766323840955,-1226.3358889,0.00012604,2]
[399371770,1766323840964,-334.23,0.0001261,2]
[399371771,1766323840973,-812.3982622,0.00012634,2]
[399371772,1766323840983,-500.0,0.00012729,2]
[399371773,1766323840992,-2133.96,0.00012838,2]
[399371774,1766323841002,-29317.55006083,0.00012963,2]
[399371775,1766323841011,-314.1002931,0.00012966,2]
[399371776,1766323841020,-60814.35216523,0.0001299,2]
[399371777,1766323841029,-500.0,0.00013003,2]
[399371778,1766323841039,-2133.96,0.00013112,2]
[399371779,1766323841048,-31752.91727692,0.00013118,2]
[399371780,1766323841057,-433.0,0.0001317,2]
[399371781,1766323841066,-587.0,0.00013264,2]
[399371782,1766323841076,-174.7668322,0.00013273,2]
[399371783,1766323841086,-166.07222089,0.00013273,2]
[399371784,1766323841098,-500.0,0.00013273,2]
[399371785,1766323841109,-500.0,0.00013273,2]
[399371786,1766323841118,-500.0,0.00013273,2]
[399371787,1766323841128,-535.80488435,0.00013273,2]
[399371788,1766323841137,-169.30599703,0.00013273,2]
[399371789,1766323841148,-235.5477362,0.00013273,2]
[399371790,1766323841158,-501.13880069,0.00013273,2]
[399371791,1766323841168,-172.78810174,0.00013273,2]
[399371792,1766323841177,-500.0,0.00013273,2]
[399371793,1766323841189,-176.68955298,0.00013273,2]
[399371794,1766323841199,-500.0,0.00013273,2]
[399371795,1766323841208,-500.0,0.00013273,2]
[399371796,1766323841218,-500.0,0.00013273,2]
[399371797,1766323841227,-172.62322663,0.00013273,2]
[399371798,1766323841236,-224.07561459,0.00013273,2]
[399371799,1766323841248,-163.74041745,0.00013273,2]
[399371800,1766323841258,-500.0,0.00013273,2]
[399371801,1766323841267,-500.0,0.00013273,2]
[399371802,1766323841277,-500.0,0.00013273,2]
[399371803,1766323841286,-165.47156837,0.00013273,2]
[399371804,1766323841295,-500.0,0.00013273,2]
[399371805,1766323841305,-500.0,0.00013273,2]
[399371806,1766323841315,-500.0,0.00013273,2]
[399371807,1766323841325,-500.0,0.00013273,2]
[399371808,1766323841335,-276.49556074,0.00013273,2]
[399371809,1766323841346,-160.24966058,0.00013273,2]
[399371810,1766323841356,-500.0,0.00013273,2]
[399371811,1766323841366,-500.0,0.00013273,2]
[399371812,1766323841377,-162.06342056,0.00013273,2]
[399371813,1766323841387,-500.0,0.00013273,2]
[399371814,1766323841397,-500.0,0.00013273,2]
[399371815,1766323841407,-500.0,0.00013273,2]
[399371816,1766323841418,-500.0,0.00013273,2]
[399371817,1766323841428,-500.0,0.00013273,2]
[399371818,1766323841438,-168.62041939,0.00013273,2]
[399371819,1766323841447,-165.33365869,0.00013273,2]
[399371820,1766323841457,-500.28275711,0.00013273,2]
[399371821,1766323841467,-165.55250469,0.00013273,2]
[399371822,1766323841477,-500.0,0.00013273,2]
[399371823,1766323841486,-216.30072536,0.00013273,2]
[399371824,1766323841496,-201.68060624,0.00013273,2]
[399371825,1766323841506,-500.0,0.00013273,2]
[399371826,1766323841517,-500.0,0.00013273,2]
[399371827,1766323841526,-500.0,0.00013273,2]
[399371828,1766323841536,-500.0,0.00013273,2]
[399371829,1766323841546,-500.0,0.00013273,2]
[399371830,1766323841557,-515.90612576,0.00013273,2]
[399371831,1766323841567,-500.0,0.00013273,2]
[399371832,1766323841576,-165.81830667,0.00013273,2]
[399371833,1766323841589,-162.88863399,0.00013273,2]
[399371834,1766323841598,-2351.0,0.00013291,2]
[399371835,1766323841608,-2133.96,0.00013386,2]
[399371836,1766323841617,-1226.3358889,0.00013463,2]
[399371837,1766323841627,-139716.7132768,0.00013481,2]
[399371838,1766323841637,-1000.0,0.000135,2]
[399371839,1766323841646,-1069.39940286,0.00013598,2]
[399371840,1766323841655,-382464.788401,0.00013614,2]
[399371841,1766323841664,-151.0,0.00013615,2]
[399371842,1766323841673,-151.0,0.00013616,2]
[399371843,1766323841683,-151.0,0.00013619,2]
[399371844,1766323841692,-29317.55006083,0.00013619,2]
[399371845,1766323841701,-2133.96,0.0001366,2]
[399371846,1766323841710,-261.824715,0.00013673,2]
[399371847,1766323841720,-31752.91727692,0.00013677,2]
[399371848,1766323841729,-500.0,0.00013698,2]
[399371849,1766323841739,-500.0,0.00013698,2]
[399371850,1766323841748,-649.58,0.00013698,2]
[399371851,1766323841760,-649.58,0.00013698,2]
[399371852,1766323841770,-649.58,0.00013698,2]
[399371853,1766323841785,-649.58,0.00013698,2]
[399371854,1766323841797,-500.0,0.00013698,2]
[399371855,1766323841807,-500.0,0.00013698,2]
[399371856,1766323841816,-500.0,0.00013698,2]
[399371857,1766323841825,-500.0,0.00013698,2]
[399371858,1766323841836,-500.0,0.00013698,2]
[399371859,1766323841846,-500.0,0.00013698,2]
[399371860,1766323841856,-500.0,0.00013698,2]
[399371861,1766323841865,-500.0,0.00013698,2]
[399371862,1766323841875,-500.0,0.00013698,2]
[399371863,1766323841886,-500.0,0.00013698,2]
[399371864,1766323841896,-500.0,0.00013698,2]
[399371865,1766323841905,-500.0,0.00013698,2]
[399371866,1766323841915,-500.0,0.00013698,2]
[399371867,1766323841924,-500.0,0.00013698,2]
[399371868,1766323841934,-500.0,0.00013698,2]
[399371869,1766323841943,-500.0,0.00013698,2]
[399371870,1766323841953,-500.0,0.00013698,2]
[399371871,1766323841962,-500.0,0.00013698,2]
[399371872,1766323841971,-500.0,0.00013698,2]
[399371873,1766323841981,-500.0,0.00013698,2]
[399371874,1766323841991,-500.0,0.00013698,2]
[399371875,1766323842000,-500.0,0.00013698,2]
[399371876,1766323842010,-500.0,0.00013698,2]
[399371877,1766323842019,-567.20870026,0.00013698,2]
[399371878,1766323842029,-500.0,0.00013698,2]
[399371879,1766323842039,-500.0,0.00013698,2]
[399371880,1766323842048,-500.0,0.00013698,2]
[399371881,1766323842058,-500.0,0.00013698,2]
[399371882,1766323842068,-500.0,0.00013698,2]
[399371883,1766323842078,-500.0,0.00013698,2]
[399371884,1766323842087,-500.0,0.00013698,2]
[399371885,1766323842098,-500.0,0.00013698,2]
[399371886,1766323842107,-500.0,0.00013698,2]
[399371887,1766323842117,-500.0,0.00013698,2]
[399371888,1766323842128,-500.0,0.00013698,2]
[399371889,1766323842139,-344.15406571,0.00013698,2]
[399371890,1766323842148,-500.0,0.00013698,2]
[399371891,1766323842158,-500.0,0.00013698,2]
[399371892,1766323842167,-500.0,0.00013698,2]
[399371893,1766323842178,-500.0,0.00013698,2]
[399371894,1766323842188,-500.0,0.00013698,2]
[399371895,1766323842198,-500.0,0.00013698,2]
[399371896,1766323842208,-500.0,0.00013698,2]
[399371897,1766323842219,-500.0,0.00013698,2]
[399371898,1766323842228,-500.0,0.00013698,2]
[399371899,1766323842238,-500.0,0.00013698,2]
[399371900,1766323842248,-500.0,0.00013698,2]
[399371902,1766323842258,-500.0,0.00013698,2]
[399371904,1766323842267,-500.0,0.00013698,2]
[399371906,1766323842277,-500.0,0.00013698,2]
[399371908,1766323842287,-500.0,0.00013698,2]
[399371909,1766323842297,-500.0,0.00013698,2]
[399371910,1766323842307,-500.0,0.00013698,2]
[399371911,1766323842316,-500.0,0.00013698,2]
[399371912,1766323842327,-500.0,0.00013698,2]
[399371913,1766323842342,-500.0,0.00013698,2]
[399371914,1766323842352,-916.99,0.00013698,2]
[399371915,1766323842361,-916.99,0.00013698,2]
[399371916,1766323842371,-916.99,0.00013698,2]
[399371917,1766323842382,-916.99,0.00013698,2]
[399371918,1766323842392,-500.0,0.00013698,2]
[399371919,1766323842402,-500.0,0.00013698,2]
[399371920,1766323842412,-500.0,0.00013698,2]
[399371922,1766323842423,-510.69307451,0.00013698,2]
[399371923,1766323842433,-500.0,0.00013698,2]
[399371924,1766323842443,-500.0,0.00013698,2]
[399371925,1766323842453,-500.0,0.00013698,2]
[399371927,1766323842463,-500.0,0.00013698,2]
[399371928,1766323842473,-200.0,0.00013699,2]
[399371929,1766323842483,-196.43,0.00013699,2]
[399371930,1766323842492,-500.0,0.00013699,2]
[399371931,1766323842502,-500.0,0.00013699,2]
[399371932,1766323842513,-500.0,0.00013699,2]
[399371933,1766323842523,-500.0,0.00013699,2]
[399371934,1766323842533,-500.0,0.00013699,2]
[399371935,1766323842542,-500.0,0.00013699,2]
[399371936,1766323842552,-500.0,0.00013699,2]
[399371937,1766323842564,-500.0,0.00013699,2]
[399371938,1766323842575,-500.0,0.00013699,2]
[399371939,1766323842585,-500.0,0.00013699,2]
[399371940,1766323842598,-500.0,0.00013699,2]
[399371941,1766323842607,-500.0,0.00013699,2]
[399371942,1766323842617,-500.0,0.00013699,2]
[399371943,1766323842627,-500.0,0.00013699,2]
[399371944,1766323842645,-500.0,0.00013699,2]
[399371945,1766323842654,-500.0,0.00013699,2]
[399371946,1766323842664,-374.80550231,0.00013699,2]
[399371947,1766323842674,-500.0,0.00013699,2]
[399371948,1766323842684,-500.0,0.00013699,2]
[399371949,1766323842695,-500.0,0.00013699,2]
[399371950,1766323842704,-500.0,0.00013699,2]
[399371951,1766323842714,-500.0,0.00013699,2]
[399371952,1766323842724,-500.0,0.00013699,2]
[399371953,1766323842739,-500.0,0.00013699,2]
[399371954,1766323842748,-500.0,0.00013699,2]
[399371955,1766323842758,-500.0,0.00013699,2]
[399371956,1766323842768,-500.0,0.00013699,2]
[399371957,1766323842779,-649.9453063,0.00013699,2]
[399371958,1766323842788,-500.0,0.00013699,2]
[399371959,1766323842798,-500.0,0.00013699,2]
[399371960,1766323842808,-500.0,0.00013699,2]
[399371961,1766323842818,-500.0,0.00013699,2]
[399371962,1766323842828,-500.0,0.00013699,2]
[399371963,1766323842838,-500.0,0.00013699,2]
[399371964,1766323842849,-500.0,0.00013699,2]
[399371965,1766323842859,-500.0,0.00013699,2]
[399371966,1766323842869,-500.0,0.00013699,2]
[399371967,1766323842879,-500.0,0.00013699,2]
[399371968,1766323842889,-500.0,0.00013699,2]
[399371969,1766323842899,-500.0,0.00013699,2]
[399371971,1766323842909,-500.0,0.00013699,2]
[399371972,1766323842919,-500.0,0.00013699,2]
[399371973,1766323842929,-500.0,0.00013699,2]
[399371974,1766323842939,-500.0,0.00013699,2]
[399371975,1766323842949,-500.0,0.00013699,2]
[399371976,1766323842958,-500.0,0.00013699,2]
[399371977,1766323842968,-500.0,0.00013699,2]
[399371978,1766323842978,-208.16009032,0.00013821,2]
[399371979,1766323842988,-1000.0,0.00013821,2]
[399371980,1766323842999,-1001.10835573,0.00013821,2]
[399371981,1766323843009,-500.84654228,0.00013821,2]
[399371982,1766323843019,-535.22474582,0.00013821,2]
[399371983,1766323843029,-572.75082077,0.00013821,2]
[399371984,1766323843038,-1000.0,0.00013821,2]
[399371985,1766323843049,-1000.0,0.00013821,2]
[399371986,1766323843059,-1000.0,0.00013821,2]
[399371987,1766323843069,-1000.0,0.00013821,2]
[399371988,1766323843079,-235.55154497,0.00013821,2]
[399371989,1766323843091,-1000.0,0.00013821,2]
[399371990,1766323843100,-1000.0,0.00013821,2]
[399371991,1766323843110,-1000.0,0.00013821,2]
[399371992,1766323843123,-789.33467407,0.00013821,2]
[399371993,1766323843135,-1000.0,0.00013821,2]
[399371994,1766323843144,-1000.0,0.00013821,2]
[399371995,1766323843155,-1000.0,0.00013821,2]
[399371996,1766323843165,-453.53849539,0.00013821,2]
[399371997,1766323843174,-484.06013596,0.00013821,2]
[399371998,1766323843184,-1000.0,0.00013821,2]
[399371999,1766323843193,-1000.0,0.00013821,2]
[399372000,1766323843203,-1000.0,0.00013821,2]
[399372001,1766323843213,-1000.0,0.00013821,2]
[399372002,1766323843222,-514.63903632,0.00013821,2]
[399372003,1766323843233,-1000.0,0.00013821,2]
[399372004,1766323843242,-594.78120498,0.00013821,2]
[399372005,1766323843252,-1000.0,0.00013821,2]
[399372006,1766323843262,-6965.75,0.00013897,2]
[399372007,1766323843271,-14425.39,0.00013899,2]
[399372008,1766323843281,-2133.96,0.00013934,2]
[399372009,1766323843294,-500.0,0.00014134,2]
[399372010,1766323843304,-500.0,0.00014134,2]
[399372011,1766323843314,-500.0,0.00014134,2]
[399372012,1766323843324,-5308.69593013,0.00014208,2]
[399372013,1766323843334,-2133.96,0.00014208,2]
[399372014,1766323843345,-1345.44458259,0.00014225,2]
[399372015,1766323843355,-31752.91727692,0.00014235,2]
[399372016,1766323843365,-29317.55006083,0.00014276,2]
[399372017,1766323843375,-1226.3358889,0.00014322,2]
[399372018,1766323843385,-649.58,0.00014368,2]
[399372019,1766323843399,-1500.0,0.00014368,2]
[399372020,1766323843409,-1500.0,0.00014368,2]
[399372021,1766323843419,-1500.0,0.00014368,2]
[399372022,1766323843429,-644.26340267,0.00014368,2]
[399372023,1766323843439,-366.15226393,0.00014368,2]
[399372024,1766323843450,-1501.58945381,0.00014368,2]
[399372025,1766323843460,-1500.0,0.00014368,2]
[399372026,1766323843470,-1500.0,0.00014368,2]
[399372027,1766323843483,-1500.0,0.00014368,2]
[399372028,1766323843496,-1500.0,0.00014368,2]
[399372029,1766323843515,-1500.0,0.00014368,2]
[399372030,1766323843525,-1500.0,0.00014368,2]
[399372031,1766323843535,-1500.0,0.00014368,2]
[399372032,1766323843545,-503.74441146,0.00014368,2]
[399372033,1766323843555,-1211.67995912,0.00014368,2]
[399372034,1766323843565,-1504.443568,0.00014368,2]
[399372035,1766323843575,-1500.0,0.00014368,2]
[399372036,1766323843584,-314.1002931,0.00014421,2]
[399372037,1766323843595,-736.0,0.00014422,2]
[399372038,1766323843605,-2133.96,0.00014482,2]
[399372039,1766323843615,-200.0,0.00014546,2]
[399372040,1766323843625,-207.4,0.00014546,2]
[399372041,1766323843634,-215.0738,0.00014546,2]
[399372042,1766323843644,-223.0315306,0.00014546,2]
[399372043,1766323843653,-231.28369723,0.00014546,2]
[399372044,1766323843663,-239.84119403,0.00014546,2]
[399372045,1766323843673,-248.71531821,0.00014546,2]
[399372046,1766323843682,-257.91778498,0.00014546,2]
[399372047,1766323843695,-267.46074303,0.00014546,2]
[399372048,1766323843705,-151.0,0.00014546,2]
[399372049,1766323843714,-300.0,0.00014546,2]
[399372050,1766323843724,-709.0,0.00014576,2]
[399372051,1766323843733,-1172.42466186,0.00014588,2]
[399372052,1766323843743,-345.66258234,0.00014588,2]
[399372053,1766323843754,-3292.0,0.0001462,2]
[399372054,1766323843765,-139716.7132768,0.00014679,2]
[399372055,1766323843775,-858.09199899,0.00014688,2]
[399372056,1766323843785,-2133.96,0.00014756,2]
[399372057,1766323843795,-31752.91727692,0.00014793,2]
[399372058,1766323843805,-482.26053294,0.00014822,2]
[399372059,1766323843815,-500.0,0.00014822,2]
[399372060,1766323843825,-382464.788401,0.00014823,2]
[399372061,1766323843835,-945.676086,0.00014823,2]
[399372062,1766323843846,-945.676086,0.00014823,2]
[399372063,1766323843856,-945.676086,0.00014823,2]
[399372064,1766323843866,-945.676086,0.00014823,2]
[399372065,1766323843875,-151.0,0.00014823,2]
[399372066,1766323843885,-151.0,0.00014823,2]
[399372067,1766323843895,-151.0,0.00014823,2]
[399372068,1766323843906,-151.0,0.00014823,2]
[399372069,1766323843930,-269.9,0.00014904,2]
[399372070,1766323843940,-2000.0,0.00014916,2]
[399372071,1766323843950,-1138.30499273,0.00014916,2]
[399372072,1766323843960,-2000.0,0.00014916,2]
[399372073,1766323843971,-2000.0,0.00014916,2]
[399372074,1766323843981,-2000.0,0.00014916,2]
[399372075,1766323843990,-503.75804982,0.00014916,2]
[399372076,1766323844000,-2000.0,0.00014916,2]
[399372077,1766323844010,-502.34827947,0.00014916,2]
[399372078,1766323844020,-1834.49283525,0.00014916,2]
[399372079,1766323844030,-508.91462185,0.00014916,2]
[399372080,1766323844040,-29317.55006083,0.00014932,2]
[399372081,1766323844050,-296.83,0.00014992,2]
[399372082,1766323844060,-6123.56823101,0.00014994,2]
[399372083,1766323844072,-1154.75497368,0.00015,2]
[399372084,1766323844083,-13730.75410372,0.00015,2]
[399372085,1766323844094,-2133.96,0.0001503,2]
[399372086,1766323844105,-334.23,0.00015052,2]
[399372087,1766323844116,-553.63,0.00015068,2]
[399372088,1766323844128,-500.0,0.00015172,2]
[399372089,1766323844139,-1226.3358889,0.00015181,2]
[399372090,1766323844149,-500.0,0.00015186,2]
[399372091,1766323844162,-5703.25042254,0.00015221,2]
[399372092,1766323844173,-1069.39940285,0.00015254,2]
[399372093,1766323844183,-150.0,0.00015288,2]
[399372094,1766323844195,-150.0,0.00015288,2]
[399372095,1766323844205,-150.0,0.00015288,2]
[399372096,1766323844215,-151.28381653,0.00015288,2]
[399372097,1766323844224,-150.0,0.00015288,2]
[399372098,1766323844235,-150.0,0.00015288,2]
[399372099,1766323844247,-150.0,0.00015288,2]
[399372100,1766323844256,-150.0,0.00015288,2]
[399372101,1766323844266,-150.0,0.00015288,2]
[399372102,1766323844275,-150.0,0.00015288,2]
[399372103,1766323844286,-150.0,0.00015288,2]
[399372104,1766323844295,-150.0,0.00015288,2]
[399372105,1766323844305,-150.0,0.00015288,2]
[399372106,1766323844315,-150.89972091,0.00015288,2]
[399372107,1766323844325,-150.0,0.00015288,2]
[399372108,1766323844335,-150.0,0.00015288,2]
[399372109,1766323844346,-2133.96,0.00015304,2]
[399372110,1766323844356,-6042.44,0.0001531,2]
[399372111,1766323844366,-299.99,0.0001531,2]
[399372112,1766323844376,-33926.13,0.0001531,2]
[399372113,1766323844386,-9999.99,0.0001531,2]
[399372114,1766323844397,-9999.99,0.0001531,2]
[399372115,1766323844407,-150.99,0.0001531,2]
[399372116,1766323844418,-150.99,0.0001531,2]
[399372117,1766323844428,-9999.99,0.0001531,2]
[399372118,1766323844438,-4999.99,0.0001531,2]
[399372119,1766323844449,-999.99,0.0001531,2]
[399372120,1766323844459,-150.0,0.00015324,2]
[399372121,1766323844469,-150.0,0.00015328,2]
[399372122,1766323844479,-31752.91727692,0.00015352,2]
[399372123,1766323844490,-150.0,0.00015358,2]
[399372124,1766323844499,-150.0,0.0001536,2]
[399372125,1766323844509,-197.87592581,0.00015364,2]
[399372126,1766323844519,-150.0,0.00015369,2]
[399372127,1766323844529,-150.0,0.00015369,2]
[399372128,1766323844539,-150.0,0.00015373,2]
[399372129,1766323844549,-150.0,0.00015396,2]
[399372130,1766323844559,-505.85702931,0.000154,2]
[399372131,1766323844569,-150.0,0.00015409,2]
[399372132,1766323844578,-502.43278642,0.00015412,2]
[399372133,1766323844588,-150.0,0.00015429,2]
[399372134,1766323844599,-150.0,0.00015432,2]
[399372135,1766323844609,-150.0,0.00015449,2]
[399372136,1766323844619,-150.0,0.00015449,2]
[399372137,1766323844629,-150.0,0.00015458,2]
[399372138,1766323844639,-2500.0,0.00015464,2]
[399372139,1766323844649,-2500.0,0.00015464,2]
[399372140,1766323844658,-2500.0,0.00015464,2]
[399372141,1766323844668,-2500.0,0.00015464,2]
[399372142,1766323844678,-2500.0,0.00015464,2]
[399372143,1766323844688,-150.0,0.00015468,2]
[399372144,1766323844698,-150.0,0.0001549,2]
[399372145,1766323844709,-150.0,0.000155,2]
[399372146,1766323844718,-150.0,0.00015505,2]
[399372147,1766323844729,-150.0,0.0001553,2]
[399372148,1766323844738,-150.0,0.0001553,2]
[399372149,1766323844748,-150.0,0.0001553,2]
[399372150,1766323844758,-150.0,0.00015541,2]
[399372151,1766323844769,-150.0,0.00015542,2]
[399372152,1766323844779,-150.0,0.00015571,2]
[399372153,1766323844789,-150.0,0.00015571,2]
[399372154,1766323844798,-150.0,0.00015571,2]
[399372155,1766323844808,-150.0,0.00015571,2]
[399372156,1766323844818,-150.0,0.00015577,2]
[399372157,1766323844828,-2133.96,0.00015578,2]
[399372158,1766323844839,-29317.55006083,0.00015588,2]
[399372159,1766323844848,-150.0,0.00015611,2]
[399372160,1766323844858,-150.0,0.00015611,2]
[399372161,1766323844868,-150.0,0.00015613,2]
[399372162,1766323844878,-150.0,0.00015627,2]
[399372163,1766323844888,-150.0,0.00015642,2]